bitfinex/quotes_BTCUSD_20240818
["timestamp","ask_amount","ask_price","bid_price","bid_amount"]
[1723945226635,0.00037985,59618.0,59617.0,1.90384589]
[1723945226835,0.00037985,59618.0,59617.0,1.91679633]
[1723945227036,0.00037985,59618.0,59617.0,2.36453258]
[1723945227667,0.00037985,59618.0,59617.0,1.9923183]
[1723945227839,0.00037985,59618.0,59617.0,2.39064764]
[1723945228054,0.00037985,59618.0,59617.0,2.49135499]
[1723945228249,0.00037985,59618.0,59617.0,2.79064764]
[1723945228607,0.00037985,59618.0,59617.0,2.89333875]
[1723945229024,0.00037985,59618.0,59617.0,2.77166671]
[1723945229224,0.00037985,59618.0,59617.0,2.86816671]
[1723945230848,0.00037985,59618.0,59617.0,2.86516671]
[1723945231128,0.00037985,59618.0,59617.0,2.41743596]
[1723945231796,0.00037985,59618.0,59617.0,2.48512345]
[1723945231986,0.00037985,59618.0,59617.0,2.85833173]
[1723945232305,0.00037985,59618.0,59617.0,2.86033173]
[1723945232426,0.00037985,59618.0,59617.0,2.86031641]
[1723945232785,0.00037985,59618.0,59617.0,2.86031458]
[1723945233016,0.00037985,59618.0,59617.0,2.8854831]
[1723945233191,0.00037985,59618.0,59617.0,2.88547517]
[1723945235128,0.00037985,59618.0,59617.0,2.98611717]
[1723945235277,0.00037985,59618.0,59617.0,2.88547517]
[1723945235917,0.00037985,59618.0,59617.0,2.8854725]
[1723945236966,0.00037985,59618.0,59617.0,2.8864725]
[1723945237345,0.00037985,59618.0,59617.0,2.9881145]
[1723945237548,0.00037985,59618.0,59617.0,2.91760411]
[1723945237887,0.00037985,59618.0,59617.0,2.97766097]
[1723945238088,0.00037985,59618.0,59617.0,2.92684574]
[1723945238347,0.00037985,59618.0,59617.0,2.98565612]
[1723945238753,0.00037985,59618.0,59617.0,3.01536217]
[1723945238955,0.00037985,59618.0,59617.0,3.02736178]
[1723945239457,0.00037985,59618.0,59617.0,3.04136178]
[1723945240012,0.00037985,59618.0,59617.0,3.04134456]
[1723945240819,0.00037985,59618.0,59617.0,2.98475758]
[1723945241082,0.00037985,59618.0,59617.0,3.04134513]
[1723945241658,0.00037985,59618.0,59617.0,3.04129381]
[1723945242063,0.00037985,59618.0,59617.0,3.04129291]
[1723945242430,0.00037985,59618.0,59617.0,2.91556841]
[1723945242987,0.00037985,59618.0,59617.0,2.9545514]
[1723945243216,0.00037985,59618.0,59617.0,3.01614379]
[1723945243389,0.00037985,59618.0,59617.0,2.78303932]
[1723945243575,0.00037985,59618.0,59617.0,2.82831308]
[1723945243767,0.00037985,59618.0,59617.0,3.04955712]
[1723945244712,0.00037985,59618.0,59617.0,2.91356977]
[1723945244924,0.00037985,59618.0,59617.0,2.88341398]
[1723945245120,0.00037985,59618.0,59617.0,2.91356924]
[1723945245355,0.00037985,59618.0,59617.0,3.01614415]
[1723945245905,0.00037985,59618.0,59617.0,2.91550215]
[1723945246328,0.00037985,59618.0,59617.0,2.9154954]
[1723945246566,0.00037985,59618.0,59617.0,3.0161374]
[1723945248974,0.00037985,59618.0,59617.0,3.01613786]
[1723945249226,0.00037985,59618.0,59617.0,2.95955008]
[1723945249444,0.00037985,59618.0,59617.0,2.41967412]
[1723945249664,0.00037985,59618.0,59617.0,2.44987412]
[1723945250311,0.00037985,59618.0,59617.0,2.44987491]
[1723945250692,0.00037985,59618.0,59617.0,2.44988093]
[1723945250925,0.00037985,59618.0,59617.0,2.82206964]
[1723945251349,0.00037985,59618.0,59617.0,2.72856964]
[1723945251576,0.00037985,59618.0,59617.0,2.39458554]
[1723945251787,0.00037985,59618.0,59617.0,2.3442994]
[1723945252936,0.00037985,59618.0,59617.0,2.34430381]
[1723945254281,0.00037985,59618.0,59617.0,2.30108995]
[1723945254480,0.00037985,59618.0,59617.0,2.39458995]
[1723945255080,0.00037985,59618.0,59617.0,2.34430381]
[1723945255285,0.00037985,59618.0,59617.0,2.3946028]
[1723945258143,0.00037985,59618.0,59617.0,2.34430381]
[1723945258352,0.00037985,59618.0,59617.0,2.4197523]
[1723945258763,0.00037985,59618.0,59617.0,2.79195306]
[1723945258977,0.00037985,59618.0,59617.0,2.4197523]
[1723945259183,0.00037985,59618.0,59617.0,2.34430381]
[1723945259399,0.00037985,59618.0,59617.0,2.4197523]
[1723945260258,0.00037985,59618.0,59617.0,2.79195462]
[1723945261121,0.00037985,59618.0,59617.0,2.77077802]
[1723945261344,0.00037985,59618.0,59617.0,2.71650575]
[1723945261835,0.00037985,59618.0,59617.0,2.79201048]
[1723945262040,0.00037985,59618.0,59617.0,2.71650575]
[1723945262455,0.00037985,59618.0,59617.0,2.81710374]
[1723945263102,0.00037985,59618.0,59617.0,2.71650575]
[1723945265311,0.00037985,59618.0,59617.0,2.81710374]
[1723945265714,0.00037985,59618.0,59617.0,2.79202792]
[1723945265916,0.00037985,59618.0,59617.0,2.79203516]
[1723945266322,0.00037985,59618.0,59617.0,2.716512]
[1723945267125,0.00037985,59618.0,59617.0,2.81720954]
[1723945267327,0.00037985,59618.0,59617.0,2.716512]
[1723945267553,0.00037985,59618.0,59617.0,2.56642061]
[1723945267890,0.00037985,59618.0,59617.0,2.24366203]
[1723945268319,0.00037985,59618.0,59617.0,1.84366203]
[1723945268902,0.00037985,59618.0,59617.0,1.94430403]
[1723945270445,0.00037985,59618.0,59617.0,2.01982907]
[1723945270955,0.00037985,59618.0,59617.0,2.3920468]
[1723945271903,0.00037985,59618.0,59617.0,2.33545481]
[1723945272095,0.00037985,59618.0,59617.0,2.39204762]
[1723945272710,0.00037985,59618.0,59617.0,2.31652258]
[1723945272914,0.00037985,59618.0,59617.0,2.39206045]
[1723945274458,0.00037985,59618.0,59617.0,2.01984272]
[1723945275297,0.00037985,59618.0,59617.0,2.39205813]
[1723945275764,0.00037985,59618.0,59617.0,2.01984272]
[1723945276196,0.00037985,59618.0,59617.0,2.39205841]
[1723945276372,0.00037985,59618.0,59617.0,2.019843]
[1723945277814,0.00037985,59618.0,59617.0,2.39205912]
[1723945278192,0.00037985,59618.0,59617.0,2.79205912]
[1723945278541,0.00037985,59618.0,59617.0,2.88211879]
[1723945279002,0.00037985,59618.0,59617.0,2.91227495]
[1723945279216,0.00037985,59618.0,59617.0,2.88211879]
[1723945279667,0.00037985,59618.0,59617.0,2.78142125]
[1723945279867,0.00037985,59618.0,59617.0,2.91227495]
[1723945280092,0.00037985,59618.0,59617.0,2.81157741]
[1723945280933,0.00037985,59618.0,59617.0,2.82081968]
[1723945281337,0.00037985,59618.0,59617.0,2.81157741]
[1723945281541,0.00037985,59618.0,59617.0,2.81154663]
[1723945282132,0.00037985,59618.0,59617.0,2.87960805]
[1723945283266,0.00037985,59618.0,59617.0,2.88060805]
[1723945283784,0.00037985,59618.0,59617.0,2.88060266]
[1723945284040,0.00037985,59618.0,59617.0,2.72579199]
[1723945284262,0.00037985,59618.0,59617.0,2.87959117]
[1723945284737,0.00037985,59618.0,59617.0,2.75494712]
[1723945284970,0.00037985,59618.0,59617.0,2.82077755]
[1723945285683,0.00037985,59618.0,59617.0,2.74596707]
[1723945285918,0.00037985,59618.0,59617.0,2.82077755]
[1723945286430,0.00037985,59618.0,59617.0,2.81153541]
[1723945287965,0.00037985,59618.0,59617.0,2.93742904]
[1723945288667,0.00037985,59618.0,59617.0,2.81153541]
[1723945289604,0.00037985,59618.0,59617.0,2.93743577]
[1723945290074,0.00037985,59618.0,59617.0,2.93743534]
[1723945290572,0.00037985,59618.0,59617.0,2.81153541]
[1723945291736,0.00037985,59618.0,59617.0,2.93744217]
[1723945292024,0.00037985,59618.0,59617.0,2.81153541]
[1723945292547,0.00037985,59618.0,59617.0,2.81153757]
[1723945296464,0.00037985,59618.0,59617.0,2.93745897]
[1723945296739,0.00037985,59618.0,59617.0,2.81153757]
[1723945296994,0.00037985,59618.0,59617.0,2.81153752]
[1723945297755,0.00037985,59618.0,59617.0,2.81153744]
[1723945300244,0.00037985,59618.0,59617.0,2.81154954]
[1723945300490,0.00037985,59618.0,59617.0,2.72480409]
[1723945300713,0.00037985,59618.0,59617.0,2.81154952]
[1723945301434,0.00037985,59618.0,59617.0,2.91619152]
[1723945301628,0.00037985,59618.0,59617.0,2.92643366]
[1723945301993,0.00037985,59618.0,59617.0,2.98524899]
[1723945302197,0.00037985,59618.0,59617.0,3.15680353]
[1723945302401,0.00037985,59618.0,59617.0,3.17980353]
[1723945304066,0.00037985,59618.0,59617.0,3.27209053]
[1723945304410,0.00037985,59618.0,59617.0,3.26254515]
[1723945304613,0.00037985,59618.0,59617.0,3.3190667]
[1723945304979,0.00037985,59618.0,59617.0,3.840092]
[1723945305470,0.00037985,59618.0,59617.0,3.3190667]
[1723945305668,0.00037985,59618.0,59617.0,3.16799741]
[1723945306287,0.00037985,59618.0,59617.0,3.31905483]
[1723945306666,0.00037985,59618.0,59617.0,3.16799741]
[1723945306875,0.00037985,59618.0,59617.0,3.68902271]
[1723945307049,0.00037985,59618.0,59617.0,3.16799741]
[1723945307661,0.00037985,59618.0,59617.0,3.68902271]
[1723945307857,0.00037985,59618.0,59617.0,3.16799741]
[1723945308348,0.00037985,59618.0,59617.0,3.16799571]
[1723945308564,0.00037985,59618.0,59617.0,3.02496951]
[1723945308778,0.00037985,59618.0,59617.0,3.16799068]
[1723945309198,0.00037985,59618.0,59617.0,3.31900891]
[1723945309421,0.00037985,59618.0,59617.0,3.16799086]
[1723945311596,0.00037985,59618.0,59617.0,3.31898092]
[1723945313025,0.00037985,59618.0,59617.0,3.31898079]
[1723945313418,0.00037985,59618.0,59617.0,3.30973939]
[1723945313655,0.00037985,59618.0,59617.0,3.16799071]
[1723945313882,0.00037985,59618.0,59617.0,3.1679762]
[1723945314492,0.00037985,59618.0,59617.0,3.68898119]
[1723945314698,0.00037985,59618.0,59617.0,3.1679762]
[1723945315921,0.00037985,59618.0,59617.0,3.2679762]
[1723945316519,0.000825,59620.0,59619.0,0.506036]
[1723945316725,0.000825,59620.0,59619.0,1.16871526]
[1723945316895,0.000825,59620.0,59619.0,1.1687142]
[1723945317275,0.000825,59620.0,59619.0,1.5687142]
[1723945317925,0.000825,59620.0,59619.0,1.5787142]
[1723945318127,0.000825,59620.0,59619.0,1.76326874]
[1723945318335,0.000825,59620.0,59619.0,1.86390769]
[1723945318506,0.000825,59620.0,59619.0,1.86390435]
[1723945318721,0.000825,59620.0,59619.0,1.86390418]
[1723945320444,0.000825,59620.0,59619.0,2.0148631]
[1723945320638,0.000825,59620.0,59619.0,1.92812732]
[1723945320851,0.000825,59620.0,59619.0,2.01486306]
[1723945321283,0.000825,59620.0,59619.0,1.87405844]
[1723945321478,0.11564195,59635.0,59634.0,0.150919]
[1723945321728,0.11564195,59635.0,59634.0,1.564551]
[1723945321952,0.0658,59635.0,59634.0,1.564551]
[1723945322819,0.050297,59645.0,59638.0,0.050303]
[1723945323020,0.050299,59643.0,59638.0,0.143803]
[1723945323220,0.050299,59643.0,59638.0,0.28187374]
[1723945323426,0.060825,59639.0,59638.0,0.23157074]
[1723945324104,0.060825,59639.0,59638.0,0.28187374]
[1723945324310,0.060825,59639.0,59638.0,0.30304686]
[1723945324509,0.060825,59639.0,59638.0,0.26658212]
[1723945325146,0.060825,59639.0,59638.0,0.66658212]
[1723945325356,0.060825,59639.0,59638.0,0.66758212]
[1723945325755,0.060825,59639.0,59638.0,0.66658212]
[1723945325958,0.060825,59639.0,59638.0,0.75498001]
[1723945330273,0.060825,59639.0,59638.0,0.66658212]
[1723945331239,0.060825,59639.0,59638.0,0.26658044]
[1723945331847,0.060825,59639.0,59638.0,0.26658037]
[1723945332426,0.060825,59639.0,59638.0,0.26658039]
[1723945333469,0.060825,59639.0,59638.0,1.53205539]
[1723945333675,0.060825,59639.0,59638.0,1.70360993]
[1723945334212,0.060825,59639.0,59638.0,2.10360993]
[1723945334414,0.060825,59639.0,59638.0,1.78114639]
[1723945334751,0.060825,59639.0,59638.0,1.68764639]
[1723945334952,0.060825,59639.0,59638.0,1.78114639]
[1723945335154,0.060825,59639.0,59638.0,1.83144939]
[1723945335348,0.060825,59639.0,59638.0,1.43144939]
[1723945335797,0.060825,59639.0,59638.0,1.45771069]
[1723945336393,0.060825,59639.0,59638.0,1.55831746]
[1723945339264,0.060825,59639.0,59638.0,0.29284246]
[1723945340323,0.060825,59639.0,59638.0,0.29284155]
[1723945341780,0.060825,59639.0,59638.0,0.34178025]
[1723945341781,0.000825,59639.0,59638.0,0.34178025]
[1723945345449,0.000825,59639.0,59638.0,1.60725553]
[1723945349932,0.063225,59639.0,59638.0,1.33794953]
[1723945350324,0.063225,59639.0,59638.0,1.43144953]
[1723945351002,0.063225,59639.0,59638.0,1.53205553]
[1723945351182,0.063225,59639.0,59638.0,0.26658053]
[1723945353756,0.063225,59639.0,59638.0,0.245409]
[1723945353973,0.063225,59639.0,59638.0,0.26658084]
[1723945355627,0.063225,59639.0,59638.0,0.32815874]
[1723945357112,0.063225,59639.0,59638.0,1.59363374]
[1723945358152,0.063225,59639.0,59638.0,1.5724619]
[1723945358360,0.063225,59639.0,59638.0,1.59363374]
[1723945358575,0.063225,59639.0,59638.0,1.66943374]
[1723945359452,0.000825,59639.0,59638.0,1.66943374]
[1723945361824,0.00057135,59639.0,59638.0,1.66943374]
[1723945363134,0.00057135,59639.0,59638.0,0.40395874]
[1723945363540,0.00057135,59639.0,59638.0,0.32815874]
[1723945363953,0.00057135,59639.0,59638.0,0.02217184]
[1723945364140,0.31448335,59639.0,59638.0,0.001]
[1723945364336,0.5208297,59639.0,59638.0,0.001]
[1723945364541,0.57076997,59639.0,59638.0,0.001]
[1723945364777,0.67088944,59639.0,59638.0,0.001]
[1723945364940,0.57076997,59639.0,59638.0,0.001]
[1723945365348,0.69578084,59639.0,59638.0,0.001]
[1723945365548,0.217448,59623.0,59622.0,1.265475]
[1723945365749,0.217448,59623.0,59621.0,0.0009075]
[1723945365750,0.050316,59622.0,59621.0,0.0009075]
[1723945367419,0.050316,59622.0,59621.0,0.0039075]
[1723945367894,0.050316,59622.0,59621.0,0.0099075]
[1723945368095,0.050316,59622.0,59621.0,0.02044175]
[1723945369078,0.050316,59622.0,59621.0,0.0099075]
[1723945369937,0.050315,59624.0,59622.0,0.0777]
[1723945370136,0.050315,59624.0,59622.0,0.1712]
[1723945370751,0.167126,59627.0,59622.0,0.1712]
[1723945370954,0.050313,59626.0,59623.0,0.0232334]
[1723945372148,0.050313,59626.0,59623.0,0.0252334]
[1723945372350,0.050314,59625.0,59623.0,0.002]
[1723945373270,0.050313,59626.0,59623.0,0.002]
[1723945373476,0.050313,59626.0,59623.0,0.0201015]
[1723945373900,0.050314,59625.0,59623.0,0.0201015]
[1723945374138,0.050314,59625.0,59623.0,0.0181015]
[1723945374347,0.051314,59625.0,59623.0,0.001]
[1723945374965,0.051314,59625.0,59623.0,0.002]
[1723945375170,0.050314,59625.0,59623.0,0.001]
[1723945375608,0.050315,59624.0,59623.0,0.002]
[1723945376744,0.050315,59624.0,59622.0,0.0935]
[1723945376951,0.050315,59624.0,59623.0,0.003]
[1723945377148,0.050315,59624.0,59623.0,0.004]
[1723945377583,0.050315,59624.0,59623.0,0.009]
[1723945377781,0.050315,59624.0,59623.0,0.005]
[1723945378011,0.050315,59624.0,59623.0,0.0228015]
[1723945378160,0.050315,59624.0,59623.0,0.0278015]
[1723945378361,0.150934,59631.0,59624.0,0.143]
[1723945378362,0.116815,59631.0,59624.0,0.143]
[1723945378563,0.050312,59628.0,59626.0,0.0935]
[1723945380420,0.053312,59628.0,59626.0,0.0935]
[1723945380791,0.050312,59628.0,59626.0,0.0935]
[1723945380991,0.20062,59630.0,59626.0,0.0935]
[1723945380992,0.050312,59627.0,59626.0,0.0935]
[1723945381514,0.050312,59627.0,59626.0,0.001]
[1723945382817,0.050312,59627.0,59624.0,0.0777]
[1723945383029,0.050312,59627.0,59623.0,0.0935]
[1723945383234,0.050312,59627.0,59626.0,0.002]
[1723945383716,0.050312,59627.0,59626.0,0.006]
[1723945383917,0.050312,59627.0,59626.0,0.004]
[1723945385161,0.050312,59627.0,59623.0,0.004]
[1723945385956,0.150937,59627.0,59626.0,0.004]
[1723945386159,0.316462,59627.0,59626.0,0.004]
[1723945386512,0.314462,59627.0,59626.0,0.004]
[1723945387022,0.316462,59627.0,59626.0,0.004]
[1723945387332,0.316462,59627.0,59621.0,0.0009075]
[1723945387333,0.100633,59622.0,59621.0,0.0009075]
[1723945388010,0.150949,59622.0,59621.0,0.0009075]
[1723945389229,0.151949,59622.0,59621.0,0.0079075]
[1723945389424,0.150949,59622.0,59621.0,0.0009075]
[1723945389829,0.251582,59622.0,59621.0,0.0029075]
[1723945390008,0.251582,59622.0,59621.0,0.0059075]
[1723945390346,0.251582,59622.0,59621.0,0.0029075]
[1723945390548,0.252582,59622.0,59621.0,0.0029075]
[1723945391195,0.214849,59622.0,59621.0,0.0029075]
[1723945393482,0.21444537,59622.0,59621.0,0.0029075]
[1723945396414,0.31507837,59622.0,59621.0,0.0029075]
[1723945396621,0.32180137,59622.0,59621.0,0.0029075]
[1723945397645,0.22116837,59622.0,59621.0,0.0029075]
[1723945397848,0.32180137,59622.0,59621.0,0.0029075]
[1723945398878,0.15826837,59622.0,59621.0,0.0029075]
[1723945399053,0.001,59622.0,59621.0,0.09214175]
[1723945403798,0.051316,59622.0,59621.0,0.09214175]
[1723945404867,0.051316,59622.0,59621.0,0.0823075]
[1723945405539,0.10702097,59622.0,59621.0,0.0823075]
[1723945405942,0.051316,59622.0,59621.0,0.0823075]
[1723945406143,0.052141,59622.0,59621.0,0.0823075]
[1723945407137,0.314507,59622.0,59621.0,0.0029075]
[1723945407313,0.37021517,59622.0,59621.0,0.0029075]
[1723945409611,0.30911517,59622.0,59621.0,0.0835075]
[1723945410640,0.30911517,59622.0,59621.0,0.09850175]
[1723945411665,0.30911517,59622.0,59621.0,0.0835075]
[1723945415144,0.253407,59622.0,59621.0,0.0835075]
[1723945415595,0.253407,59622.0,59621.0,0.1480075]
[1723945415791,0.001825,59622.0,59621.0,0.1480075]
[1723945417995,0.05753104,59622.0,59621.0,0.1480075]
[1723945418217,0.001825,59622.0,59621.0,0.17235175]
[1723945419125,0.001825,59622.0,59621.0,0.1480075]
[1723945421861,0.001825,59622.0,59621.0,1.84226767]
[1723945422073,0.001825,59622.0,59621.0,1.84526767]
[1723945422305,0.001825,59622.0,59621.0,2.06869771]
[1723945422510,0.001825,59622.0,59621.0,1.84226767]
[1723945422709,0.001825,59622.0,59621.0,2.01382221]
[1723945423125,0.001825,59622.0,59621.0,2.01482221]
[1723945423279,0.000825,59622.0,59621.0,2.51548117]
[1723945423556,0.000825,59622.0,59621.0,2.51348117]
[1723945423760,0.001825,59622.0,59621.0,2.51348117]
[1723945424112,0.000825,59622.0,59621.0,2.51348117]
[1723945424291,0.000825,59622.0,59621.0,2.41682221]
[1723945424495,0.000825,59622.0,59621.0,2.43082221]
[1723945424691,0.000825,59622.0,59621.0,2.44482221]
[1723945424915,0.001825,59622.0,59621.0,2.44482221]
[1723945425194,0.001825,59622.0,59621.0,2.52028284]
[1723945426022,0.001825,59622.0,59621.0,2.52027792]
[1723945426218,0.001825,59622.0,59621.0,2.14808339]
[1723945426651,0.001825,59622.0,59621.0,2.14508339]
[1723945426880,0.001825,59622.0,59621.0,1.89806952]
[1723945427059,0.001825,59622.0,59621.0,1.99156952]
[1723945427279,0.001825,59622.0,59621.0,1.95615712]
[1723945428255,0.00161122,59622.0,59621.0,1.99157028]
[1723945428435,0.00161122,59622.0,59621.0,2.04185955]
[1723945429644,0.00161122,59622.0,59621.0,2.21341409]
[1723945430312,0.00161122,59622.0,59621.0,2.11991409]
[1723945430512,0.00161122,59622.0,59621.0,2.21341409]
[1723945430718,0.00161122,59622.0,59621.0,2.15682631]
[1723945430928,0.00161122,59622.0,59621.0,2.21339983]
[1723945431325,0.00161122,59622.0,59621.0,2.16312437]
[1723945431942,0.00161122,59622.0,59621.0,2.16412437]
[1723945432146,0.00161122,59622.0,59621.0,2.41571137]
[1723945434090,0.00161122,59622.0,59621.0,2.37929877]
[1723945434540,0.00161122,59622.0,59621.0,2.41471137]
[1723945436642,0.00161122,59622.0,59621.0,2.41571137]
[1723945437023,0.00161122,59622.0,59621.0,2.38029877]
[1723945437224,0.00161122,59622.0,59621.0,2.41571117]
[1723945438322,0.00161122,59622.0,59621.0,2.41571107]
[1723945439518,0.00161122,59622.0,59621.0,2.41471107]
[1723945440127,0.00161122,59622.0,59621.0,2.41571107]
[1723945440325,0.00161122,59622.0,59621.0,2.41471107]
[1723945440728,0.00161122,59622.0,59621.0,2.37929866]
[1723945441536,0.00161122,59622.0,59621.0,2.41471172]
[1723945441976,0.00161122,59622.0,59621.0,2.41471155]
[1723945442745,0.00161122,59622.0,59621.0,2.35021155]
[1723945444034,0.00161122,59622.0,59621.0,2.41621155]
[1723945445081,0.00161122,59622.0,59621.0,2.41721155]
[1723945445744,0.00161122,59622.0,59621.0,2.41721044]
[1723945446788,0.00161122,59622.0,59621.0,2.41621044]
[1723945447812,0.00161122,59622.0,59621.0,2.1786559]
[1723945448232,0.00161122,59622.0,59621.0,1.7786559]
[1723945448420,0.00161122,59622.0,59621.0,1.5845209]
[1723945448619,0.00161122,59622.0,59621.0,1.6780209]
[1723945449169,0.00161122,59622.0,59621.0,2.0780209]
[1723945449371,0.00161122,59622.0,59621.0,2.24957544]
[1723945449593,0.00161122,59622.0,59621.0,2.0780209]
[1723945449801,0.00161122,59622.0,59621.0,2.0214345]
[1723945450012,0.00161122,59622.0,59621.0,2.07802268]
[1723945452790,0.00161122,59622.0,59621.0,2.0214345]
[1723945452990,0.00161122,59622.0,59621.0,2.07802308]
[1723945453200,0.00161122,59622.0,59621.0,2.24957762]
[1723945453973,0.00161122,59622.0,59621.0,2.19298904]
[1723945454171,0.00161122,59622.0,59621.0,2.24957781]
[1723945454600,0.00161122,59622.0,59621.0,2.24957902]
[1723945454798,0.00161122,59622.0,59621.0,2.24957956]
[1723945456715,0.00161122,59622.0,59621.0,2.19298904]
[1723945456925,0.00161122,59622.0,59621.0,2.24957874]
[1723945457759,0.00161122,59622.0,59621.0,2.35021374]
[1723945458051,0.00161122,59622.0,59621.0,2.44226811]
[1723945458254,0.00161122,59622.0,59621.0,2.4925343]
[1723945459965,0.00161122,59622.0,59621.0,2.49255038]
[1723945460165,0.00161122,59622.0,59621.0,2.44226811]
[1723945460456,0.00161122,59622.0,59621.0,2.49255898]
[1723945461258,0.00161122,59622.0,59621.0,2.44226802]
[1723945463159,0.00161122,59622.0,59621.0,2.88988445]
[1723945463312,0.00161122,59622.0,59621.0,2.81443718]
[1723945463714,0.00161122,59622.0,59621.0,2.88990728]
[1723945464337,0.00161122,59622.0,59621.0,2.91503354]
[1723945464738,0.00161122,59622.0,59621.0,2.81443718]
[1723945465135,0.00161122,59622.0,59621.0,2.91503354]
[1723945465977,0.00161122,59622.0,59621.0,2.81443718]
[1723945466183,0.00161122,59622.0,59621.0,2.94018264]
[1723945466387,0.00161122,59622.0,59621.0,2.91002542]
[1723945466551,0.00161122,59622.0,59621.0,2.94032884]
[1723945466749,0.00161122,59622.0,59621.0,2.81543512]
[1723945467309,0.00161122,59622.0,59621.0,2.91607012]
[1723945467658,0.00161122,59622.0,59621.0,2.81543512]
[1723945469082,0.00161122,59622.0,59621.0,2.81743512]
[1723945470684,0.00161122,59622.0,59621.0,2.78202259]
[1723945470864,0.00161122,59622.0,59621.0,2.81743432]
[1723945471650,0.00161122,59622.0,59621.0,2.81443432]
[1723945471844,0.00161122,59622.0,59621.0,2.81543432]
[1723945472022,0.00161122,59622.0,59621.0,2.81443432]
[1723945473719,0.00161122,59622.0,59621.0,2.81543432]
[1723945474609,0.00161122,59622.0,59621.0,2.78528018]
[1723945474816,0.00161122,59622.0,59621.0,2.81743372]
[1723945475944,0.00161122,59622.0,59621.0,2.81742444]
[1723945477205,0.00161122,59622.0,59621.0,2.81442444]
[1723945477710,0.00161122,59622.0,59621.0,2.81442477]
[1723945477911,0.00161122,59622.0,59621.0,2.81442578]
[1723945478764,0.00161122,59622.0,59621.0,2.75783906]
[1723945478983,0.00161122,59622.0,59621.0,2.81442546]
[1723945479612,0.00161122,59622.0,59621.0,2.81542546]
[1723945480176,0.00161122,59622.0,59621.0,2.81742546]
[1723945482848,0.00161122,59622.0,59621.0,2.81742535]
[1723945486345,0.00161122,59622.0,59621.0,2.92730201]
[1723945486545,0.00161122,59622.0,59621.0,2.98611343]
[1723945487031,0.00161122,59622.0,59621.0,2.97686934]
[1723945487381,0.00161122,59622.0,59621.0,2.98611092]
[1723945489152,0.00161122,59622.0,59621.0,2.98311092]
[1723945489365,0.00161122,59622.0,59621.0,2.92430081]
[1723945489752,0.00161122,59622.0,59621.0,2.89514534]
[1723945489968,0.00161122,59622.0,59621.0,2.92529879]
[1723945490307,0.00161122,59622.0,59621.0,2.92729879]
[1723945490863,0.00161122,59622.0,59621.0,2.92929879]
[1723945491799,0.00161122,59622.0,59621.0,2.83331824]
[1723945491998,0.00161122,59622.0,59621.0,2.92929879]
[1723945493052,0.00161122,59622.0,59621.0,2.55713959]
[1723945493260,0.00161122,59622.0,59621.0,2.92929879]
[1723945495293,0.00161122,59622.0,59621.0,2.83331824]
[1723945495497,0.00161122,59622.0,59621.0,2.98810894]
[1723945496268,0.00161122,59622.0,59621.0,2.98810833]
[1723945497378,0.00161122,59622.0,59621.0,2.98410833]
[1723945497553,0.00161122,59622.0,59621.0,2.98610833]
[1723945497787,0.00161122,59622.0,59621.0,2.48746692]
[1723945498000,0.00161122,59622.0,59621.0,2.58096692]
[1723945498199,0.00161122,59622.0,59621.0,2.68160192]
[1723945499334,0.00161122,59622.0,59621.0,2.68161462]
[1723945499548,0.00161122,59622.0,59621.0,2.68161695]
[1723945499759,0.00161122,59622.0,59621.0,2.85317149]
[1723945500400,0.00161122,59622.0,59621.0,2.85617149]
[1723945501012,0.00161122,59622.0,59621.0,2.75353649]
[1723945501429,0.00161122,59622.0,59621.0,2.75553649]
[1723945502125,0.06231122,59622.0,59621.0,2.48748195]
[1723945502332,0.06231122,59622.0,59621.0,1.5090238]
[1723945502550,0.06231122,59622.0,59621.0,1.48382661]
[1723945502726,0.06231122,59622.0,59621.0,1.43344366]
[1723945502935,0.06231122,59622.0,59621.0,1.3980293]
[1723945503167,0.06231122,59622.0,59621.0,1.3840293]
[1723945503574,0.06231122,59622.0,59621.0,1.3890293]
[1723945504125,0.06231122,59622.0,59621.0,1.3840293]
[1723945504339,0.06131122,59622.0,59621.0,1.3680293]
[1723945504891,0.06231122,59622.0,59621.0,1.3760293]
[1723945505307,0.06331122,59622.0,59621.0,1.3880293]
[1723945505483,0.06331122,59622.0,59621.0,1.3960293]
[1723945505686,0.06231122,59622.0,59621.0,1.35787525]
[1723945505922,0.06231122,59622.0,59621.0,1.34987525]
[1723945506094,0.06131122,59622.0,59621.0,1.33787525]
[1723945506309,0.06131122,59622.0,59621.0,1.61153944]
[1723945506310,0.00061122,59622.0,59621.0,1.61153944]
[1723945508514,0.00061122,59622.0,59621.0,1.52993944]
[1723945512725,0.00061122,59622.0,59621.0,1.58027694]
[1723945513003,0.00061122,59622.0,59621.0,1.52993944]
[1723945513191,0.00061122,59622.0,59621.0,1.58027694]
[1723945514203,0.00061122,59622.0,59621.0,1.83161194]
[1723945514464,0.00061122,59622.0,59621.0,1.91732303]
[1723945514684,0.00061122,59622.0,59621.0,1.99282852]
[1723945515274,0.00061122,59622.0,59621.0,1.91732227]
[1723945515427,0.00061122,59622.0,59621.0,1.99282852]
[1723945515619,0.00061122,59622.0,59621.0,1.93623994]
[1723945515819,0.00061122,59622.0,59621.0,1.99282852]
[1723945516075,0.00061122,59622.0,59621.0,2.16638306]
[1723945516273,0.00061122,59622.0,59621.0,3.04204241]
[1723945516849,0.00061122,59622.0,59621.0,2.99988878]
[1723945517043,0.00061122,59622.0,59621.0,3.09338878]
[1723945517269,0.00061122,59622.0,59621.0,3.10738878]
[1723945518078,0.00061122,59622.0,59621.0,3.0508002]
[1723945518279,0.00061122,59622.0,59621.0,3.10738626]
[1723945518389,0.00061122,59622.0,59621.0,3.13753992]
[1723945518804,0.00161122,59622.0,59621.0,3.15153992]
[1723945519634,0.00161122,59622.0,59621.0,2.97998538]
[1723945519888,0.00161122,59622.0,59621.0,2.95898538]
[1723945521834,0.00161122,59622.0,59621.0,2.8030009]
[1723945522237,0.00161122,59622.0,59621.0,2.8050009]
[1723945522537,0.00161122,59622.0,59621.0,2.8311546]
[1723945522766,0.00161122,59622.0,59621.0,2.8351546]
[1723945524630,0.00161122,59622.0,59621.0,2.96098542]
[1723945525852,0.00161122,59622.0,59621.0,2.928831]
[1723945526030,0.00161122,59622.0,59621.0,2.95898436]
[1723945526618,0.00161122,59622.0,59621.0,2.95898433]
[1723945528446,0.00161122,59622.0,59621.0,2.96098433]
[1723945530187,0.00161122,59622.0,59621.0,2.93083081]
[1723945530362,0.00161122,59622.0,59621.0,2.96098414]
[1723945531758,0.00161122,59622.0,59621.0,2.95698414]
[1723945531985,0.00161122,59622.0,59621.0,2.9016502]
[1723945532187,0.00161122,59622.0,59621.0,2.9026502]
[1723945532388,0.00161122,59622.0,59621.0,2.95898461]
[1723945532597,0.00161122,59622.0,59621.0,2.77656864]
[1723945532792,0.00161122,59622.0,59621.0,2.80300078]
[1723945533491,0.00161122,59622.0,59621.0,2.83315442]